bitfinex/quotes_SOLUSD_20220218
["timestamp","ask_amount","ask_price","bid_price","bid_amount"]
[1645205650411,2.6293831,91.219,91.11,12.82]
[1645205650412,5.482,91.218,91.11,12.82]
[1645205650611,24.708593,91.218,91.111,6.25]
[1645205650812,2.6293831,91.217,91.113,110.0]
[1645205651014,5.484,91.216,91.121,110.0]
[1645205651212,2.6293831,91.217,91.122,0.25]
[1645205651412,2.6293831,91.216,91.122,6.25]
[1645205652214,2.6293831,91.216,91.11,12.82]
[1645205652215,2.6293831,91.216,91.123,6.0]
[1645205652413,110.0,91.214,91.102,22.727]
[1645205652612,5.484,91.213,91.103,6.0]
[1645205652812,110.0,91.212,91.102,22.727]
[1645205653014,110.0,91.21,91.102,22.727]
[1645205653213,5.485,91.209,91.102,22.727]
[1645205653612,5.485,91.209,91.103,6.0]
[1645205653816,110.0,91.207,91.102,22.727]
[1645205654014,5.485,91.206,91.102,22.727]
[1645205654213,110.0,91.205,91.1,16.4672]
[1645205654513,5.485,91.204,91.1,16.4672]
[1645205654716,110.0,91.203,91.1,16.4672]
[1645205654916,5.485,91.202,91.101,110.0]
[1645205655113,5.485,91.202,91.11,16.4654]
[1645205655318,2.6293831,91.203,91.111,0.25]
[1645205655514,2.6293831,91.201,91.111,0.25]
[1645205655914,0.25,91.2,91.11,16.4654]
[1645205656113,0.25,91.2,91.111,0.25]
[1645205656313,0.25,91.2,91.11,16.4654]
[1645205656314,2.6293831,91.199,91.11,16.4654]
[1645205656513,47.64053849,91.197,91.11,16.4654]
[1645205656715,5.485,91.196,91.11,16.4654]
[1645205656917,8.1143831,91.196,91.11,16.4654]
[1645205657119,5.485,91.196,91.11,16.4654]
[1645205657320,2.6293831,91.195,91.111,110.25]
[1645205657519,2.6293831,91.195,91.12,16.4633]
[1645205657819,23.2629,91.196,91.121,0.25]
[1645205658019,23.2629,91.196,91.12,16.4633]
[1645205658220,112.6293831,91.195,91.09,67.7017]
[1645205658425,5.485,91.194,91.091,0.25]
[1645205658620,110.0,91.193,91.091,0.25]
[1645205658820,5.485,91.192,91.091,0.25]
[1645205659218,110.0,91.191,91.091,0.25]
[1645205659419,110.0,91.189,91.089,0.25]
[1645205659618,5.486,91.188,91.089,0.25]
[1645205660020,2.6293831,91.187,91.089,0.25]
[1645205660219,5.486,91.186,91.09,16.4696]
[1645205660420,5.486,91.186,91.091,0.25]
[1645205660619,2.6293831,91.185,91.091,0.25]
[1645205660822,39.72864497,91.182,91.091,0.25]
[1645205661320,2.6293831,91.181,91.091,0.25]
[1645205661721,2.6293831,91.181,91.1,16.4677]
[1645205662323,2.6293831,91.181,91.101,0.25]
[1645205663124,2.6293831,91.181,91.1,16.4677]
[1645205663724,0.25,91.18,91.1,16.4677]
[1645205664124,2.6293831,91.179,91.1,16.4677]
[1645205664824,0.25,91.18,91.101,0.25]
[1645205665049,39.72864497,91.182,91.101,0.25]
[1645205665846,39.72864497,91.182,91.1,16.4677]
[1645205665847,6.21363368,91.181,91.1,16.4677]
[1645205666446,0.25,91.18,91.1,16.4677]
[1645205666647,2.6293831,91.181,91.1,16.4677]
[1645205666847,2.6293831,91.179,91.1,16.4677]
[1645205667047,2.6293831,91.179,91.08,54.8899]
[1645205667250,145.96534566,91.178,91.09,16.47]
[1645205667449,145.96534566,91.178,91.06,67.7214]
[1645205667450,110.0,91.176,91.06,67.7214]
[1645205667652,5.486,91.175,91.06,67.7214]
[1645205667849,5.486,91.175,91.061,49.5542]
[1645205667850,110.0,91.173,91.061,49.5542]
[1645205668050,11.70104566,91.172,91.061,49.5542]
[1645205668250,121.70104566,91.172,91.08,16.4716]
[1645205668449,31.81662876,91.171,91.08,16.4716]
[1645205668650,6.21404566,91.17,91.081,0.25]
[1645205668852,2.6293831,91.17,91.081,0.25]
[1645205670053,2.6293831,91.17,91.09,16.4699]
[1645205670256,1.54120401,91.156,91.09,16.4699]
[1645205670456,51.65439615,91.155,91.09,16.4699]
[1645205670655,1.54120401,91.151,91.09,16.4699]
[1645205670954,0.25,91.15,91.09,16.4699]
[1645205671156,1.54120401,91.152,91.09,16.4699]
[1645205671360,2.6293831,91.149,91.061,49.3042]
[1645205671556,1.54120401,91.146,91.062,0.25]
[1645205671956,4.17058711,91.145,91.062,0.25]
[1645205672453,2.6293831,91.144,91.07,16.4732]
[1645205672757,2.6293831,91.144,91.071,0.25]
[1645205672954,2.6293831,91.144,91.07,16.4732]
[1645205673155,5.488,91.143,91.032,115.488]
[1645205673356,110.0,91.133,91.022,84.6357]
[1645205673556,16.479,91.12,91.04,16.4786]
[1645205673755,52.45608901,91.119,91.04,16.4786]
[1645205674157,55.08547211,91.119,91.023,52.4409]
[1645205674355,23.6102,91.118,91.024,0.25]
[1645205674556,26.2395831,91.118,91.023,46.4409]
[1645205674758,115.49,91.117,91.023,46.4409]
[1645205674962,16.4801,91.11,91.023,46.4409]
[1645205675558,22.911,91.109,91.023,46.4409]
[1645205676360,22.911,91.109,91.03,16.4807]
[1645205677057,2.6293831,91.108,91.023,46.4409]
[1645205677258,8.1193831,91.108,91.022,5.488]
[1645205677460,25.18900401,91.107,91.022,5.488]
[1645205677658,110.0,91.104,91.022,5.488]
[1645205677861,5.49,91.103,91.022,5.488]
[1645205678260,8.1193831,91.103,91.022,5.488]
[1645205678462,46.53563903,91.105,91.022,5.488]
[1645205678660,46.53563903,91.105,91.02,16.4812]
[1645205678860,46.53563903,91.105,91.021,0.25]
[1645205679061,1.54120401,91.118,91.021,110.25]
[1645205679261,24.4352,91.119,91.023,110.0]
[1645205679464,24.4352,91.119,91.025,110.0]
[1645205679664,0.25,91.118,91.026,6.25]
[1645205679861,22.9483,91.118,91.027,110.0]
[1645205680062,22.9483,91.118,91.026,6.25]
[1645205680063,49.75888535,91.117,91.029,110.0]
[1645205680260,49.75888535,91.117,91.031,110.0]
[1645205680466,49.75888535,91.117,91.05,16.4774]
[1645205680861,49.75888535,91.117,91.051,110.25]
[1645205681063,7.03020401,91.141,91.051,110.25]
[1645205681368,1.54120401,91.146,91.051,110.25]
[1645205681560,5.488,91.145,91.051,110.25]
[1645205681761,1.54120401,91.143,91.052,6.0]
[1645205681960,55.14661669,91.142,91.051,0.25]
[1645205682162,1.54120401,91.141,91.043,110.0]
[1645205682362,16.4744,91.14,91.07,16.4735]
[1645205682562,0.25,91.139,91.07,16.4735]
[1645205682965,2.8793831,91.139,91.07,16.4735]
[1645205683565,0.25,91.139,91.07,16.4735]
[1645205683967,48.11741268,91.142,91.051,110.0]
[1645205684168,1.54120401,91.155,91.081,110.0]
[1645205684467,1.54120401,91.159,91.09,12.82]
[1645205684669,1.54120401,91.168,91.091,110.25]
[1645205684867,1.54120401,91.174,91.091,116.25]
[1645205685070,46.85167232,91.173,91.091,116.25]
[1645205686371,48.39287633,91.173,91.091,116.25]
[1645205686570,1.54120401,91.169,91.091,110.25]
[1645205686772,1.79120401,91.168,91.091,110.25]
[1645205687372,1.79120401,91.168,91.091,110.0]
[1645205687577,1.54120401,91.165,91.091,110.0]
[1645205687772,1.54120401,91.169,91.091,110.0]
[1645205688176,1.54120401,91.166,91.046,40.0811]
[1645205688375,5.488,91.165,91.08,16.4715]
[1645205688574,66.05131175,91.15,91.047,6.0]
[1645205688774,47.4673,91.149,91.047,6.0]
[1645205689175,47.4673,91.149,91.048,110.0]
[1645205689374,47.4673,91.149,91.051,110.0]
[1645205689575,47.4673,91.149,91.053,110.0]
[1645205689776,1.54120401,91.146,91.054,6.0]
[1645205689977,1.54120401,91.145,91.054,6.0]
[1645205690177,49.00850401,91.149,91.051,6.0]
[1645205690378,0.25,91.148,91.08,16.4699]
[1645205690580,0.25,91.148,91.081,0.25]
[1645205690784,0.25,91.148,91.081,110.25]
[1645205691079,1.54120401,91.167,91.091,110.0]
[1645205691279,0.25,91.166,91.093,110.0]
[1645205691483,1.79120401,91.169,91.09,12.82]
[1645205691781,1.79120401,91.169,91.081,110.0]
[1645205691782,2.6293831,91.165,91.059,5.486]
[1645205692084,1.54120401,91.159,91.07,12.82]
[1645205692490,1.54120401,91.158,91.07,12.82]
[1645205693193,4.17058711,91.157,91.07,12.82]
[1645205693395,1.54120401,91.156,91.07,16.4733]
[1645205693593,5.487,91.155,91.07,16.4733]
[1645205693793,1.54120401,91.148,91.07,16.4733]
[1645205693992,1.54120401,91.149,91.07,16.4733]
[1645205694592,1.54120401,91.146,91.07,16.4733]
[1645205694794,1.54120401,91.149,91.07,16.4733]
[1645205694997,1.54120401,91.148,91.07,16.4733]
[1645205695194,1.54120401,91.147,91.07,16.4733]
[1645205695394,1.54120401,91.145,91.07,16.4733]
[1645205695594,0.25,91.144,91.07,16.4733]
[1645205695795,1.54120401,91.146,91.07,16.4733]
[1645205695997,0.25,91.145,91.07,16.4733]
[1645205696799,2.8793831,91.145,91.06,16.475]
[1645205696996,1.54120401,91.142,91.041,115.488]
[1645205697196,51.0716037,91.13,91.042,6.0]
[1645205697398,23.9807,91.129,91.042,6.0]
[1645205697597,1.54120401,91.128,91.042,6.0]
[1645205697798,1.54120401,91.128,91.043,0.25]
[1645205697996,23.9807,91.129,91.043,0.25]
[1645205698198,23.9807,91.129,91.044,110.0]
[1645205698397,23.9807,91.129,91.046,110.0]
[1645205698600,23.9807,91.129,91.048,110.0]
[1645205698806,23.9807,91.129,91.06,16.4737]
[1645205699105,23.9807,91.129,91.061,0.25]
[1645205700711,23.9807,91.129,91.061,110.25]
[1645205700908,1.54120401,91.138,91.071,110.0]
[1645205701211,1.54120401,91.154,91.073,110.0]
[1645205701407,11.46790669,91.227,91.072,6.25]
[1645205701408,1.54120401,91.174,91.075,110.0]
[1645205701607,4.60434424,91.226,91.091,110.0]
[1645205701608,1.54120401,91.177,91.091,110.0]
[1645205701809,1.54120401,91.173,91.092,6.25]
[1645205702008,1.54120401,91.172,91.11,16.4663]
[1645205702207,1.54120401,91.172,91.09,67.704]
[1645205702408,1.54120401,91.165,91.091,0.25]
[1645205702607,1.79120401,91.164,91.09,12.82]
[1645205702809,1.54120401,91.163,91.09,12.82]
[1645205703009,1.54120401,91.163,91.1,16.4682]
[1645205703208,16.469,91.17,91.09,12.82]
[1645205703209,1.54120401,91.17,91.101,116.25]
[1645205703407,1.54120401,91.183,91.101,118.8793831]
[1645205703707,1.54120401,91.181,91.102,6.0]
[1645205703909,1.54120401,91.184,91.103,0.25]
[1645205704106,2.6293831,91.194,91.103,0.25]
[1645205704107,1.54120401,91.18,91.103,0.25]
[1645205704307,1.54120401,91.179,91.103,0.25]
[1645205704510,1.54120401,91.18,91.103,0.25]
[1645205704708,2.6293831,91.179,91.1,12.82]
[1645205704908,1.54120401,91.172,91.1,12.82]
[1645205705306,1.54120401,91.171,91.1,12.82]
[1645205705908,1.54120401,91.171,91.11,16.466]
[1645205706108,1.54120401,91.171,91.091,110.0]
[1645205706311,1.54120401,91.171,91.093,110.0]
[1645205706512,44.18195761,91.169,91.095,110.0]
[1645205706909,44.18195761,91.169,91.09,67.7067]
[1645205707112,2.6293831,91.168,91.09,12.82]
[1645205707311,2.6293831,91.168,91.07,67.7195]
[1645205707312,1.54120401,91.166,91.07,67.7195]
[1645205707513,1.54120401,91.164,91.075,6.0]
[1645205707710,1.54120401,91.163,91.075,6.0]
[1645205707912,1.54120401,91.161,91.076,110.0]
[1645205708111,1.54120401,91.161,91.078,110.0]
[1645205708314,1.54120401,91.165,91.1,16.4679]
[1645205708512,1.54120401,91.166,91.08,177.7129]
[1645205708713,1.54120401,91.164,91.082,110.0]
[1645205708913,1.54120401,91.164,91.084,110.0]
[1645205709120,1.54120401,91.164,91.086,110.0]
[1645205709314,1.54120401,91.164,91.088,110.0]
[1645205709513,1.54120401,91.164,91.089,116.25]
[1645205709721,1.54120401,91.163,91.09,6.0]
[1645205709915,1.54120401,91.163,91.091,0.25]
[1645205709916,0.25,91.162,91.091,0.25]
[1645205710113,1.79120401,91.162,91.091,0.25]
[1645205710315,1.79120401,91.162,91.11,16.4672]
[1645205710715,0.25,91.162,91.11,16.4672]
[1645205710915,0.25,91.162,91.07,5.486]
[1645205710916,47.54473071,91.155,91.07,12.82]
[1645205711117,1.54120401,91.151,91.06,54.9062]
[1645205711415,115.487,91.154,91.06,16.4761]
[1645205711416,43.53616983,91.139,91.06,16.4761]
[1645205711619,1.54120401,91.133,91.06,16.4761]
[1645205711815,1.54120401,91.132,91.014,5.488]
[1645205712016,1.54120401,91.124,91.02,12.82]
[1645205712317,1.54120401,91.115,91.022,110.0]
[1645205712518,53.17935927,91.123,91.041,110.0]
[1645205712716,50.54997617,91.123,91.043,110.0]
[1645205712922,50.54997617,91.123,91.045,110.0]
[1645205713120,50.54997617,91.123,91.047,110.0]
[1645205713318,0.25,91.122,91.048,0.25]
[1645205713717,0.25,91.122,91.049,110.0]
[1645205713919,50.54997617,91.123,91.05,0.25]
[1645205714125,50.54997617,91.123,91.051,110.0]
[1645205714323,50.54997617,91.123,91.07,16.4743]
[1645205714719,50.54997617,91.123,91.04,114.7177]
[1645205714920,50.54997617,91.123,91.041,6.25]
[1645205715119,50.54997617,91.123,91.042,110.0]
[1645205715320,50.54997617,91.123,91.04,114.7177]
[1645205715321,0.25,91.122,91.044,110.0]
[1645205715521,0.25,91.122,91.046,110.0]
[1645205715721,0.25,91.122,91.045,6.25]
[1645205715722,0.25,91.122,91.048,110.0]
[1645205715921,0.25,91.122,91.049,0.25]
[1645205716123,0.25,91.122,91.07,16.4742]
[1645205716321,0.25,91.122,91.049,6.25]
[1645205716322,0.25,91.122,91.048,2.6293831]
[1645205716624,0.25,91.122,91.041,110.0]
[1645205716821,0.25,91.122,91.043,110.0]
[1645205717022,0.25,91.122,91.045,110.0]
[1645205717227,0.25,91.122,91.07,16.4742]
[1645205717622,0.25,91.122,91.05,54.9111]
[1645205717825,5.489,91.121,90.97,160.3]
[1645205718031,1.54120401,91.114,90.995,24.0604]
[1645205718225,110.0,91.109,90.994,29.62409599]
[1645205718426,1.54120401,91.1,90.994,29.62409599]
[1645205718627,1.54120401,91.1,91.001,110.0]
[1645205718824,43.50754405,91.107,91.011,110.0]
[1645205719024,43.50754405,91.107,91.012,5.49]
[1645205719228,43.50754405,91.107,91.014,110.0]
[1645205719424,43.50754405,91.107,91.016,110.0]
[1645205719628,43.50754405,91.107,91.018,110.0]
[1645205719824,43.50754405,91.107,91.02,110.0]
[1645205720026,43.50754405,91.107,91.019,6.25]
[1645205720027,43.50754405,91.107,91.022,110.0]
[1645205720225,43.50754405,91.107,91.024,110.0]
[1645205720426,43.50754405,91.107,91.03,16.4779]
[1645205720626,0.25,91.106,91.01,12.82]
[1645205720827,5.49,91.105,91.01,12.82]
[1645205721430,2.6293831,91.104,91.01,12.82]
[1645205721731,110.0,91.102,91.01,12.82]
[1645205721927,5.49,91.101,91.01,12.82]
[1645205722129,8.1193831,91.101,91.01,12.82]
[1645205722328,2.6293831,91.1,91.01,16.4812]
[1645205722529,5.49,91.099,91.01,16.4812]
[1645205722829,5.49,91.099,91.011,0.25]
[1645205723228,2.6293831,91.1,91.011,0.25]
[1645205723430,2.6293831,91.098,91.011,0.25]
[1645205723629,2.6293831,91.098,91.011,110.25]
[1645205723831,2.6293831,91.098,91.011,110.0]
[1645205724430,5.49,91.102,91.02,16.4807]
[1645205724632,48.1753,91.106,91.021,110.25]
[1645205724841,1.54120401,91.128,91.031,110.0]
[1645205725041,1.54120401,91.128,91.033,110.0]
[1645205725240,1.54120401,91.128,91.03,12.82]
[1645205725241,2.6293831,91.127,91.034,6.0]
[1645205725440,47.182,91.126,91.04,16.4771]
[1645205725643,52.671,91.126,91.023,23.0813]
[1645205725945,163.42437543,91.112,91.023,23.0813]
[1645205726143,28.89,91.111,91.023,23.0813]
[1645205726342,31.5193831,91.111,91.023,23.0813]
[1645205726543,2.6293831,91.11,91.023,23.0813]
[1645205726746,5.74,91.109,91.023,23.0813]
[1645205726944,0.25,91.109,91.024,110.0]
[1645205727145,0.25,91.109,91.031,110.0]
[1645205727345,0.25,91.11,91.032,0.25]
[1645205727546,0.25,91.11,91.033,110.0]
[1645205727746,0.25,91.11,91.035,110.0]
[1645205728045,0.25,91.11,91.05,16.4756]
[1645205728451,0.25,91.11,91.051,0.25]
[1645205728646,0.25,91.11,91.05,16.4756]
[1645205728944,2.6293831,91.109,91.032,5.489]
[1645205730149,0.25,91.108,91.032,5.489]
[1645205730551,2.6293831,91.107,91.032,5.489]
[1645205730947,0.25,91.108,91.033,0.25]
[1645205731150,0.25,91.108,91.032,5.489]
[1645205731549,0.25,91.108,91.034,110.0]
[1645205731749,0.25,91.108,91.035,6.0]
[1645205731950,0.25,91.108,91.04,16.4774]
[1645205732150,23.4,91.111,91.04,16.4774]
[1645205732347,0.25,91.11,91.04,16.4774]
[1645205732568,23.4,91.111,91.04,16.4774]
[1645205732770,23.4,91.111,91.032,5.489]
[1645205732970,23.4,91.111,91.034,110.0]
[1645205733171,23.4,91.111,91.036,110.0]
[1645205733374,23.4,91.111,91.041,110.0]
[1645205733574,23.4,91.111,91.042,0.25]
[1645205733775,23.4,91.111,91.04,12.82]
[1645205733974,0.25,91.11,91.041,0.25]
[1645205735072,0.25,91.11,91.04,12.82]
[1645205735274,0.25,91.11,91.04,29.2962]
[1645205735876,0.25,91.11,91.041,110.0]
[1645205736175,0.25,91.11,91.042,6.0]
[1645205736375,0.25,91.11,91.043,110.25]
[1645205736577,0.25,91.11,91.045,110.0]
[1645205736782,0.25,91.11,91.047,110.0]
[1645205736983,0.25,91.11,91.049,110.0]
[1645205737187,0.25,91.11,91.05,0.25]
[1645205737384,0.25,91.11,91.06,16.4747]
[1645205738279,0.25,91.11,91.03,67.736]
[1645205738480,0.25,91.11,91.031,6.25]
[1645205739080,0.25,91.11,91.031,0.25]
[1645205739488,0.25,91.11,91.031,6.25]
[1645205739680,0.25,91.11,91.031,0.25]
[1645205740482,0.25,91.11,91.04,16.4787]
[1645205742085,16.7299,91.11,91.04,16.4787]
[1645205742689,1.54120401,91.108,91.04,16.4787]
[1645205743086,4.17058711,91.107,91.03,16.4808]
[1645205743286,1.54120401,91.104,91.031,0.25]
[1645205743494,4.17058711,91.106,91.031,0.25]
[1645205743711,0.25,91.105,91.031,0.25]
[1645205743885,1.54120401,91.106,91.031,2.8793831]
[1645205744085,1.54120401,91.12,91.033,110.0]
[1645205744287,1.54120401,91.13,91.041,110.0]
[1645205744486,1.54120401,91.126,91.043,110.0]
[1645205744694,1.54120401,91.126,91.045,110.0]
[1645205744886,42.53981205,91.125,91.05,67.7275]
[1645205745086,1.54120401,91.121,91.051,0.25]
[1645205745285,1.54120401,91.118,91.06,16.476]
[1645205745485,1.54120401,91.118,91.041,24.7432]
[1645205745686,1.54120401,91.113,91.041,24.7432]
[1645205745886,1.54120401,91.109,91.041,24.7432]
[1645205746088,41.02782878,91.108,91.041,24.7432]
[1645205746688,41.02782878,91.108,91.06,16.4761]
[1645205746885,41.02782878,91.108,91.03,67.741]
[1645205747097,23.4292,91.107,91.031,0.25]
[1645205747291,24.97040401,91.107,91.031,0.25]
[1645205747487,23.4292,91.107,91.031,0.25]
[1645205748086,110.0,91.106,91.014,2.6293831]
[1645205748292,110.0,91.091,90.998,2.6293831]
[1645205748487,5.49,91.09,90.98,12.82]
[1645205748688,1.54120401,91.082,90.981,6.0]
[1645205748887,52.8900978,91.092,90.981,6.0]
[1645205748888,1.54120401,91.086,90.982,5.492]
[1645205749088,1.54120401,91.088,91.01,16.4841]
[1645205749289,46.8751,91.091,91.01,16.4841]
[1645205749290,46.8751,91.091,91.021,110.0]
[1645205749489,46.8751,91.091,91.02,12.82]
[1645205749490,52.8900978,91.092,91.023,110.0]
[1645205749690,1.54120401,91.102,91.025,110.0]
[1645205749902,1.54120401,91.119,91.031,110.0]
[1645205750090,46.783,91.139,91.033,110.0]
[1645205750091,1.54120401,91.123,91.033,110.0]
[1645205750289,1.54120401,91.125,91.07,16.4724]
[1645205750489,1.54120401,91.126,91.071,0.25]
[1645205750689,53.7471724,91.124,91.071,0.25]
[1645205751090,0.25,91.123,91.035,5.488]
[1645205751289,0.25,91.123,91.036,6.25]
[1645205751290,1.54120401,91.117,91.036,6.25]
[1645205751488,0.25,91.123,91.03,54.9146]
[1645205751489,1.54120401,91.114,91.03,12.82]
[1645205751692,40.47415012,91.107,91.007,5.489]
[1645205751891,1.54120401,91.1,91.01,12.82]
[1645205752090,1.54120401,91.101,91.011,110.0]
[1645205752495,1.54120401,91.101,91.01,12.82]
[1645205752496,1.54120401,91.099,91.01,12.82]
[1645205752690,1.54120401,91.103,91.03,16.4788]
[1645205752990,24.8926,91.106,91.031,6.25]
[1645205753189,24.8926,91.106,91.032,110.0]
[1645205753390,26.43380401,91.106,91.033,6.0]
[1645205753590,1.54120401,91.102,91.033,6.0]
[1645205754091,1.54120401,91.103,91.031,0.25]
[1645205754290,1.54120401,91.102,91.031,0.25]
[1645205754490,1.54120401,91.102,91.04,16.4783]
[1645205754689,0.25,91.101,91.02,12.82]
[1645205754890,1.54120401,91.096,91.01,18.31]
[1645205755094,1.54120401,91.096,91.01,5.49]
[1645205755290,1.54120401,91.097,91.019,110.0]
[1645205755492,1.54120401,91.099,91.019,110.0]
[1645205755693,1.54120401,91.097,91.01,60.4201]
[1645205755894,1.54120401,91.092,91.01,5.49]
[1645205756092,1.54120401,91.083,91.01,5.49]
[1645205756493,1.54120401,91.084,91.01,5.49]
[1645205756693,1.54120401,91.086,91.01,5.49]
[1645205757495,1.54120401,91.083,91.01,5.49]
[1645205757697,1.54120401,91.082,91.01,5.49]
[1645205757896,1.54120401,91.084,91.01,5.49]
[1645205759013,16.4849,91.08,91.01,5.49]
[1645205759212,5.49,91.079,91.01,5.49]
[1645205759616,43.94718996,91.073,90.972,23.1936]
[1645205759914,1.54120401,91.066,90.95,12.82]
[1645205760116,110.0,91.057,90.951,116.0]
[1645205760322,110.0,91.055,90.951,116.0]
[1645205760515,28.1902,91.056,90.953,110.0]
[1645205760516,22.6962,91.056,90.953,110.0]
[1645205760715,110.0,91.055,90.954,6.0]
[1645205760915,110.0,91.055,90.954,28.2051436]
[1645205760916,5.494,91.054,90.954,28.2051436]
[1645205761115,115.494,91.055,90.955,110.0]
[1645205761316,16.4903,91.05,90.97,16.4917]
[1645205761517,22.6962,91.056,90.971,110.0]
[1645205761715,22.6962,91.056,90.972,0.25]
[1645205762215,22.6962,91.056,90.99,16.4891]
[1645205762415,22.6962,91.056,90.941,2.6293831]
[1645205762416,8.1233831,91.055,90.941,2.6293831]
[1645205762714,110.0,91.054,90.954,0.25]
[1645205762917,5.494,91.053,90.954,22.45563865]
[1645205763115,110.0,91.052,90.954,22.45563865]
[1645205763317,5.494,91.051,90.954,0.25]
[1645205763516,110.0,91.049,90.96,16.4947]
[1645205763716,1.54120401,91.044,90.927,23.2058]
[1645205763917,5.494,91.043,90.927,23.2058]
[1645205764117,1.54120401,91.046,90.927,23.2058]
[1645205764416,2.6293831,91.042,90.928,110.0]
[1645205764616,5.495,91.041,90.931,110.0]
[1645205764816,2.6293831,91.042,90.951,110.0]
[1645205764817,16.4964,91.03,90.951,110.0]
[1645205765015,1.54120401,91.05,90.951,110.0]
[1645205765215,24.6795,91.057,90.952,11.494]
[1645205765419,0.25,91.055,90.953,110.25]
[1645205765618,2.6293831,91.055,90.955,110.0]
[1645205765817,2.6293831,91.055,90.957,110.0]
[1645205766016,2.6293831,91.055,90.959,110.0]
[1645205766215,112.6293831,91.055,90.96,0.25]
[1645205766417,16.4904,91.05,90.97,16.4915]
[1645205766916,0.25,91.049,90.97,16.4915]
[1645205767417,0.25,91.053,90.97,16.4915]
[1645205767620,5.493,91.052,90.97,16.4915]
[1645205768021,16.4905,91.05,90.99,16.4901]
[1645205768418,22.6962,91.056,90.99,16.4901]
[1645205769619,0.25,91.055,90.99,16.4901]
[1645205769818,22.6962,91.056,90.99,16.4901]
[1645205770020,25.3255831,91.056,90.99,16.4901]
[1645205771122,0.25,91.055,90.99,16.4901]
[1645205771319,0.25,91.055,90.98,16.4917]
[1645205771320,110.0,91.049,90.98,16.4917]
[1645205771521,110.0,91.049,90.963,5.493]
[1645205771722,2.6293831,91.048,90.963,5.493]
[1645205772123,5.494,91.047,90.963,5.493]
[1645205772323,16.494,91.03,90.963,5.493]
[1645205772526,110.0,91.029,90.963,5.493]
[1645205772722,110.0,91.027,90.963,5.493]
[1645205772922,5.494,91.026,90.963,5.493]
[1645205773122,110.0,91.025,90.963,5.493]
[1645205773324,5.494,91.024,90.911,24.7443]
[1645205773527,110.0,91.009,90.92,16.5016]
[1645205773722,5.496,91.008,90.92,16.5016]
[1645205774022,5.496,91.008,90.891,23.2469]
[1645205774023,110.0,91.007,90.891,23.2469]
[1645205774224,110.0,90.999,90.891,23.2469]
[1645205774423,110.0,90.996,90.891,23.2469]
[1645205774623,110.0,90.994,90.892,22.19224289]
[1645205774822,5.497,90.993,90.892,22.19224289]
[1645205775223,134.2618,90.992,90.892,22.19224289]
[1645205775523,16.5026,90.99,90.9,16.5042]
[1645205775724,5.747,90.989,90.9,16.5042]
[1645205775926,110.0,90.988,90.9,16.5042]
[1645205776124,5.497,90.987,90.9,16.5042]
[1645205776324,110.0,90.987,90.9,16.5042]
[1645205776528,110.0,90.967,90.89,16.5083]
[1645205776726,5.498,90.966,90.89,16.5083]
[1645205777026,8.1273831,90.966,90.87,55.0243]
[1645205777232,50.7409545,90.968,90.871,5.499]
[1645205777426,50.7409545,90.968,90.88,12.82]